[Event "*** Titled Tuesday Blitz"]
[Site "Chess.com"]
[Date "2020.11.03"]
[Round "4"]
[White "chenxiaoyuer"]
[Black "yobdc"]
[Result "1-0"]
[WhiteElo "2493"]
[BlackElo "2318"]
[TimeControl "180+1"]
[EndTime "10:42:48 PST"]
[Termination "chenxiaoyuer won on time"]

1. e4 {[%clk 0:03:00.9]} 1... c6 {[%clk 0:02:59.7]} 2. d4 {[%clk 0:02:59.9]}
2... d5 {[%clk 0:02:59.9]} 3. Nd2 {[%clk 0:02:59.6]} 3... dxe4 {[%clk
0:02:59.9]} 4. Nxe4 {[%clk 0:03:00.5]} 4... Bf5 {[%clk 0:03:00.3]} 5. Ng3 {[%clk
0:02:59.5]} 5... Bg6 {[%clk 0:03:00.6]} 6. h4 {[%clk 0:02:59.8]} 6... h6 {[%clk
0:03:01]} 7. Nf3 {[%clk 0:02:58.2]} 7... Nd7 {[%clk 0:03:00.2]} 8. h5 {[%clk
0:02:58.7]} 8... Bh7 {[%clk 0:03:00.6]} 9. Bd3 {[%clk 0:02:59.4]} 9... Bxd3
{[%clk 0:03:00.8]} 10. Qxd3 {[%clk 0:03:00.3]} 10... e6 {[%clk 0:03:01.4]} 11.
Bd2 {[%clk 0:02:58.4]} 11... Ngf6 {[%clk 0:03:01.3]} 12. O-O-O {[%clk
0:02:58.9]} 12... Qc7 {[%clk 0:02:56.8]} 13. Ne4 {[%clk 0:02:58.6]} 13... O-O-O
{[%clk 0:02:55.6]} 14. g3 {[%clk 0:02:58.5]} 14... Be7 {[%clk 0:02:56]} 15. Bf4
{[%clk 0:02:53.9]} 15... Qa5 {[%clk 0:02:55.9]} 16. Kb1 {[%clk 0:02:38.3]} 16...
Qf5 {[%clk 0:02:20.5]} 17. Nd6+ {[%clk 0:02:00.4]} 17... Bxd6 {[%clk 0:02:19.9]}
18. Bxd6 {[%clk 0:02:01.3]} 18... Qxd3 {[%clk 0:02:06.8]} 19. cxd3 {[%clk
0:01:55.2]} 19... Nb6 {[%clk 0:01:57.4]} 20. Bc5 {[%clk 0:01:36.1]} 20... Ng4
{[%clk 0:01:38.1]} 21. Rh4 {[%clk 0:01:18.7]} 21... f5 {[%clk 0:01:31.7]} 22.
Rd2 {[%clk 0:01:06]} 22... Rd5 {[%clk 0:01:29.4]} 23. Re2 {[%clk 0:01:00.9]}
23... Re8 {[%clk 0:01:28.3]} 24. Ne5 {[%clk 0:00:43.6]} 24... Nxe5 {[%clk
0:01:20]} 25. Rxe5 {[%clk 0:00:44.5]} 25... Kd7 {[%clk 0:00:49]} 26. Kc2 {[%clk
0:00:26.7]} 26... Nc8 {[%clk 0:00:47.9]} 27. Rf4 {[%clk 0:00:21]} 27... b6
{[%clk 0:00:45.9]} 28. Ba3 {[%clk 0:00:17.8]} 28... a5 {[%clk 0:00:37.5]} 29.
Rxd5+ {[%clk 0:00:14.2]} 29... cxd5 {[%clk 0:00:37.1]} 30. Kd2 {[%clk
0:00:14.3]} 30... Na7 {[%clk 0:00:34.9]} 31. g4 {[%clk 0:00:13.6]} 31... Nb5
{[%clk 0:00:20.2]} 32. gxf5 {[%clk 0:00:13.2]} 32... exf5 {[%clk 0:00:18.1]} 33.
Rxf5 {[%clk 0:00:13.6]} 33... Kc6 {[%clk 0:00:14.6]} 34. Re5 {[%clk 0:00:12.7]}
34... Rd8 {[%clk 0:00:11.9]} 35. Ke3 {[%clk 0:00:11.1]} 35... Rd7 {[%clk
0:00:11.4]} 36. f4 {[%clk 0:00:09.9]} 36... Rf7 {[%clk 0:00:10.8]} 37. f5 {[%clk
0:00:09.3]} 37... Rd7 {[%clk 0:00:09.8]} 38. Bf8 {[%clk 0:00:05.8]} 38... Nc7
{[%clk 0:00:06.9]} 39. Kf4 {[%clk 0:00:05.1]} 39... Rf7 {[%clk 0:00:06.9]} 40.
Ba3 {[%clk 0:00:04.4]} 40... Kb5 {[%clk 0:00:05.7]} 41. Re7 {[%clk 0:00:02.8]}
41... Rxe7 {[%clk 0:00:04.1]} 42. Bxe7 {[%clk 0:00:03.7]} 42... Kc6 {[%clk
0:00:04.6]} 43. Ke5 {[%clk 0:00:04.1]} 43... Kd7 {[%clk 0:00:03.1]} 44. f6
{[%clk 0:00:04.2]} 44... gxf6+ {[%clk 0:00:03.2]} 45. Kxf6 {[%clk 0:00:04.6]}
45... Nb5 {[%clk 0:00:03.7]} 46. Kf7 {[%clk 0:00:04.2]} 46... Nxd4 {[%clk
0:00:04]} 47. Bf6 {[%clk 0:00:04.7]} 47... Nf5 {[%clk 0:00:04.2]} 48. Kg6 {[%clk
0:00:04.9]} 48... Ng3 {[%clk 0:00:04.4]} 49. Kxh6 {[%clk 0:00:04.8]} 49... Ke6
{[%clk 0:00:05]} 50. Bc3 {[%clk 0:00:04.8]} 50... Kf7 {[%clk 0:00:05.1]} 51. Kg5
{[%clk 0:00:05]} 51... Ne2 {[%clk 0:00:05.4]} 52. h6 {[%clk 0:00:05.1]} 52... d4
{[%clk 0:00:03.6]} 53. Bd2 {[%clk 0:00:04.1]} 53... b5 {[%clk 0:00:03.8]} 54.
Kg4 {[%clk 0:00:04.2]} 54... Kg6 {[%clk 0:00:03]} 55. Kf3 {[%clk 0:00:04.1]}
55... Ng1+ {[%clk 0:00:03.4]} 56. Ke4 {[%clk 0:00:04.2]} 1-0

[Event "*** Titled Tuesday Blitz"]
[Site "Chess.com"]
[Date "2020.11.03"]
[Round "4"]
[White "AlexSuv"]
[Black "BlixLT"]
[Result "0-1"]
[WhiteElo "2576"]
[BlackElo "2396"]
[TimeControl "180+1"]
[EndTime "10:42:49 PST"]
[Termination "BlixLT won by resignation"]

1. d4 {[%clk 0:03:00.9]} 1... d5 {[%clk 0:02:59.7]} 2. c4 {[%clk 0:03:01.1]}
2... Nc6 {[%clk 0:02:59.7]} 3. Nc3 {[%clk 0:02:58.3]} 3... Nf6 {[%clk
0:02:59.8]} 4. Nf3 {[%clk 0:02:56]} 4... dxc4 {[%clk 0:02:59.8]} 5. e4 {[%clk
0:02:53.7]} 5... Bg4 {[%clk 0:02:51.7]} 6. d5 {[%clk 0:02:34.1]} 6... Ne5 {[%clk
0:02:37.3]} 7. h3 {[%clk 0:02:33.8]} 7... Bxf3 {[%clk 0:02:21.4]} 8. gxf3 {[%clk
0:02:33.3]} 8... e6 {[%clk 0:02:21.8]} 9. Bf4 {[%clk 0:02:04.4]} 9... Bd6 {[%clk
0:02:16.1]} 10. dxe6 {[%clk 0:01:56.2]} 10... fxe6 {[%clk 0:02:02.3]} 11. Bxe5
{[%clk 0:01:48]} 11... Bxe5 {[%clk 0:02:01.4]} 12. Bxc4 {[%clk 0:01:42.8]} 12...
Qxd1+ {[%clk 0:01:51.9]} 13. Rxd1 {[%clk 0:01:40.3]} 13... Ke7 {[%clk
0:01:52.3]} 14. Rd2 {[%clk 0:01:18.2]} 14... Rad8 {[%clk 0:01:49.9]} 15. Kd1
{[%clk 0:01:03.9]} 15... Rxd2+ {[%clk 0:00:52.7]} 16. Kxd2 {[%clk 0:01:03.8]}
16... Bf4+ {[%clk 0:00:50.9]} 17. Kc2 {[%clk 0:01:01.3]} 17... Rd8 {[%clk
0:00:50.9]} 18. Rd1 {[%clk 0:01:01.6]} 18... Rxd1 {[%clk 0:00:50.2]} 19. Kxd1
{[%clk 0:01:02.2]} 19... c6 {[%clk 0:00:46.1]} 20. Ne2 {[%clk 0:00:58.8]} 20...
g5 {[%clk 0:00:45.5]} 21. Kc2 {[%clk 0:00:54.4]} 21... Be5 {[%clk 0:00:43.5]}
22. b3 {[%clk 0:00:41.5]} 22... Nd7 {[%clk 0:00:36.1]} 23. Nc1 {[%clk
0:00:35.3]} 23... b5 {[%clk 0:00:31.4]} 24. Bf1 {[%clk 0:00:34.5]} 24... Kd6
{[%clk 0:00:28.8]} 25. Nd3 {[%clk 0:00:31.1]} 25... a6 {[%clk 0:00:26.4]} 26.
Kd2 {[%clk 0:00:26.3]} 26... Bf4+ {[%clk 0:00:25.5]} 27. Kc2 {[%clk 0:00:24.9]}
27... c5 {[%clk 0:00:25.3]} 28. a4 {[%clk 0:00:21.3]} 28... Kc6 {[%clk
0:00:25.2]} 29. Nb2 {[%clk 0:00:19.1]} 29... Ne5 {[%clk 0:00:21.9]} 30. Be2
{[%clk 0:00:19.1]} 30... Kb6 {[%clk 0:00:19.3]} 31. axb5 {[%clk 0:00:18.4]}
31... axb5 {[%clk 0:00:18.7]} 32. Nd1 {[%clk 0:00:19.1]} 32... Nc6 {[%clk
0:00:18.6]} 33. Nc3 {[%clk 0:00:19.4]} 33... Nd4+ {[%clk 0:00:18.4]} 34. Kb2
{[%clk 0:00:19.9]} 34... Kc6 {[%clk 0:00:15.9]} 35. Bd1 {[%clk 0:00:19.3]} 35...
Bd2 {[%clk 0:00:15.2]} 36. Nb1 {[%clk 0:00:16.9]} 36... Bb4 {[%clk 0:00:14.6]}
37. Nc3 {[%clk 0:00:11.9]} 37... Bxc3+ {[%clk 0:00:14.6]} 38. Kxc3 {[%clk
0:00:12.7]} 38... Kd6 {[%clk 0:00:15]} 39. Kd3 {[%clk 0:00:13]} 39... Ke5 {[%clk
0:00:15.3]} 40. Ke3 {[%clk 0:00:13.3]} 40... c4 {[%clk 0:00:15.1]} 41. bxc4
{[%clk 0:00:13.2]} 41... bxc4 {[%clk 0:00:15.5]} 42. Kd2 {[%clk 0:00:13.9]}
42... Kf4 {[%clk 0:00:13.5]} 43. Kc3 {[%clk 0:00:13.5]} 43... Nxf3 {[%clk
0:00:13.9]} 44. Kxc4 {[%clk 0:00:13.9]} 44... h5 {[%clk 0:00:13.9]} 45. Kd3
{[%clk 0:00:12.2]} 45... e5 {[%clk 0:00:13.1]} 46. Be2 {[%clk 0:00:10.9]} 46...
h4 {[%clk 0:00:11.1]} 47. Bd1 {[%clk 0:00:10.4]} 47... Ng1 {[%clk 0:00:11.3]}
48. Bg4 {[%clk 0:00:10.6]} 48... Nf3 {[%clk 0:00:11.3]} 49. Kc4 {[%clk
0:00:05.4]} 49... Kxe4 {[%clk 0:00:09.8]} 50. Kc5 {[%clk 0:00:05.9]} 50... Nh2
{[%clk 0:00:09.6]} 51. Bh5 {[%clk 0:00:06.2]} 51... Kf4 {[%clk 0:00:09.6]} 52.
Kd5 {[%clk 0:00:05.5]} 52... g4 {[%clk 0:00:09.7]} 53. hxg4 {[%clk 0:00:06.4]}
53... h3 {[%clk 0:00:09.9]} 54. g5 {[%clk 0:00:06.3]} 54... Ng4 {[%clk
0:00:09.6]} 55. Bxg4 {[%clk 0:00:05.4]} 55... h2 {[%clk 0:00:10]} 56. g6 {[%clk
0:00:06]} 56... h1=Q+ {[%clk 0:00:09.7]} 57. f3 {[%clk 0:00:06.7]} 57... Qh6
{[%clk 0:00:09.3]} 58. g7 {[%clk 0:00:06.9]} 58... Qxg7 {[%clk 0:00:09.4]} 0-1

[Event "*** Titled Tuesday Blitz"]
[Site "Chess.com"]
[Date "2020.11.03"]
[Round "4"]
[White "AleksanderHnydiuk"]
[Black "anon102030"]
[Result "0-1"]
[WhiteElo "2479"]
[BlackElo "2673"]
[TimeControl "180+1"]
[EndTime "10:42:50 PST"]
[Termination "anon102030 won on time"]

1. e4 {[%clk 0:03:00.9]} 1... e5 {[%clk 0:02:52.7]} 2. Nf3 {[%clk 0:03:00.8]}
2... Nc6 {[%clk 0:02:53]} 3. d4 {[%clk 0:03:01.3]} 3... exd4 {[%clk 0:02:52.5]}
4. Nxd4 {[%clk 0:03:02.2]} 4... Bc5 {[%clk 0:02:52.1]} 5. Nb3 {[%clk 0:03:02.1]}
5... Bb6 {[%clk 0:02:51.6]} 6. Nc3 {[%clk 0:03:02.6]} 6... Nf6 {[%clk
0:02:49.4]} 7. Qe2 {[%clk 0:03:03.1]} 7... d6 {[%clk 0:02:47]} 8. Be3 {[%clk
0:03:03]} 8... Be6 {[%clk 0:02:45.1]} 9. O-O-O {[%clk 0:03:01.9]} 9... h6 {[%clk
0:02:41.2]} 10. Kb1 {[%clk 0:02:53.5]} 10... O-O {[%clk 0:02:28.7]} 11. f3
{[%clk 0:02:47]} 11... Re8 {[%clk 0:02:26.1]} 12. g4 {[%clk 0:02:28.7]} 12...
Bxe3 {[%clk 0:02:07.6]} 13. Qxe3 {[%clk 0:02:28.4]} 13... a5 {[%clk 0:02:08.5]}
14. h4 {[%clk 0:02:22.4]} 14... Nd7 {[%clk 0:02:06.4]} 15. g5 {[%clk 0:02:18.1]}
15... h5 {[%clk 0:02:04.7]} 16. Nd4 {[%clk 0:02:05.6]} 16... Nxd4 {[%clk
0:01:58.4]} 17. Rxd4 {[%clk 0:02:00.5]} 17... Ne5 {[%clk 0:01:54.2]} 18. Be2
{[%clk 0:01:55]} 18... Qe7 {[%clk 0:01:43.9]} 19. Rhd1 {[%clk 0:01:48.9]} 19...
f6 {[%clk 0:01:27.4]} 20. Rg1 {[%clk 0:01:35.1]} 20... f5 {[%clk 0:01:21.7]} 21.
f4 {[%clk 0:01:09.5]} 21... Ng4 {[%clk 0:01:18.9]} 22. Bxg4 {[%clk 0:01:09.5]}
22... hxg4 {[%clk 0:01:19.8]} 23. Qd3 {[%clk 0:00:29.4]} 23... fxe4 {[%clk
0:01:09.8]} 24. Rxe4 {[%clk 0:00:27.8]} 24... Qf7 {[%clk 0:01:09]} 25. Rge1
{[%clk 0:00:27.1]} 25... g6 {[%clk 0:00:49.7]} 26. Nd5 {[%clk 0:00:19.6]} 26...
Bxd5 {[%clk 0:00:38.6]} 27. Rxe8+ {[%clk 0:00:19.4]} 27... Rxe8 {[%clk
0:00:39.1]} 28. Rxe8+ {[%clk 0:00:19.8]} 28... Qxe8 {[%clk 0:00:39.9]} 29. Qxd5+
{[%clk 0:00:20.3]} 29... Kf8 {[%clk 0:00:33.2]} 30. b3 {[%clk 0:00:17.7]} 30...
g3 {[%clk 0:00:24.6]} 31. Qd4 {[%clk 0:00:16.7]} 31... Qe1+ {[%clk 0:00:21.5]}
32. Kb2 {[%clk 0:00:15.8]} 32... g2 {[%clk 0:00:20.5]} 33. Qf6+ {[%clk
0:00:15.6]} 33... Ke8 {[%clk 0:00:20.4]} 34. Qxg6+ {[%clk 0:00:15.6]} 34... Kd7
{[%clk 0:00:20.9]} 35. Qf5+ {[%clk 0:00:14.9]} 35... Qe6 {[%clk 0:00:16.7]} 36.
Qb5+ {[%clk 0:00:13.8]} 36... Ke7 {[%clk 0:00:14.1]} 37. Qxb7 {[%clk 0:00:11.9]}
37... g1=Q {[%clk 0:00:13.6]} 38. Qxc7+ {[%clk 0:00:11.9]} 38... Qd7 {[%clk
0:00:14.2]} 39. Qc3 {[%clk 0:00:11.1]} 39... Qc5 {[%clk 0:00:12.4]} 40. Qf6+
{[%clk 0:00:09.1]} 40... Ke8 {[%clk 0:00:12.7]} 41. g6 {[%clk 0:00:08.8]} 41...
Qe7 {[%clk 0:00:10.1]} 42. Qh8+ {[%clk 0:00:06.9]} 42... Qf8 {[%clk 0:00:07.9]}
43. Qh7 {[%clk 0:00:03.9]} 43... Qd4+ {[%clk 0:00:07.4]} 44. Kb1 {[%clk
0:00:02.6]} 44... Qd1+ {[%clk 0:00:05.1]} 45. Kb2 {[%clk 0:00:02.8]} 45... Qf6+
{[%clk 0:00:05.4]} 46. Ka3 {[%clk 0:00:02.6]} 46... Qc1+ {[%clk 0:00:04]} 47.
Ka4 {[%clk 0:00:02.9]} 47... Qxc2 {[%clk 0:00:04.1]} 48. Qg8+ {[%clk 0:00:01.9]}
48... Ke7 {[%clk 0:00:03.1]} 49. Qh7+ {[%clk 0:00:01.8]} 49... Ke6 {[%clk
0:00:02.2]} 50. Qg8+ {[%clk 0:00:02.3]} 50... Kf5 {[%clk 0:00:02.6]} 51. Qd5+
{[%clk 0:00:02]} 51... Kxf4 {[%clk 0:00:03]} 52. Qxd6+ {[%clk 0:00:01.3]} 52...
Qxd6 {[%clk 0:00:02.4]} 53. g7 {[%clk 0:00:02]} 53... Qdc6+ {[%clk 0:00:03.3]}
54. Kxa5 {[%clk 0:00:01.7]} 54... Q2c3+ {[%clk 0:00:04.2]} 0-1

[Event "*** Titled Tuesday Blitz"]
[Site "Chess.com"]
[Date "2020.11.03"]
[Round "4"]
[White "Meri-Arabidze"]
[Black "ClydeHillKid"]
[Result "1-0"]
[WhiteElo "2652"]
[BlackElo "2352"]
[TimeControl "180+1"]
[EndTime "10:42:50 PST"]
[Termination "Meri-Arabidze won by resignation"]

1. Nf3 {[%clk 0:03:00.9]} 1... d5 {[%clk 0:02:56.4]} 2. b3 {[%clk 0:03:01.8]}
2... Nf6 {[%clk 0:02:55.9]} 3. Bb2 {[%clk 0:03:02.1]} 3... c5 {[%clk 0:02:55.9]}
4. e3 {[%clk 0:03:02.7]} 4... a6 {[%clk 0:02:53.8]} 5. c4 {[%clk 0:03:03.2]}
5... e6 {[%clk 0:02:53.1]} 6. cxd5 {[%clk 0:03:02.9]} 6... exd5 {[%clk 0:02:54]}
7. d4 {[%clk 0:03:03.1]} 7... Nc6 {[%clk 0:02:52.8]} 8. Nbd2 {[%clk 0:03:02.2]}
8... Bg4 {[%clk 0:02:52.2]} 9. Be2 {[%clk 0:03:01.5]} 9... Rc8 {[%clk
0:02:46.8]} 10. O-O {[%clk 0:03:00.6]} 10... cxd4 {[%clk 0:02:42.7]} 11. Nxd4
{[%clk 0:03:00.2]} 11... Bxe2 {[%clk 0:02:42.3]} 12. Qxe2 {[%clk 0:03:00.3]}
12... Bd6 {[%clk 0:02:42.3]} 13. N2f3 {[%clk 0:02:59.2]} 13... O-O {[%clk
0:02:41.9]} 14. Rac1 {[%clk 0:02:58.1]} 14... Bb8 {[%clk 0:02:39.1]} 15. Rfd1
{[%clk 0:02:53.8]} 15... Qd6 {[%clk 0:02:38.9]} 16. g3 {[%clk 0:02:54]} 16... h6
{[%clk 0:02:37.8]} 17. Nxc6 {[%clk 0:02:47.2]} 17... bxc6 {[%clk 0:02:34.6]} 18.
Qxa6 {[%clk 0:02:46.4]} 18... Ne4 {[%clk 0:02:26]} 19. Be5 {[%clk 0:02:41]}
19... Qe6 {[%clk 0:02:25.9]} 20. Bxb8 {[%clk 0:02:39.5]} 20... Rxb8 {[%clk
0:02:22.9]} 21. Qxc6 {[%clk 0:02:22.7]} 21... Qf5 {[%clk 0:02:02.3]} 22. Kg2
{[%clk 0:02:21.9]} 22... Rfc8 {[%clk 0:01:58]} 23. Qa6 {[%clk 0:01:56.7]} 23...
Rxc1 {[%clk 0:01:23.5]} 24. Rxc1 {[%clk 0:01:57.6]} 24... g5 {[%clk 0:01:23.3]}
25. Qe2 {[%clk 0:01:32.9]} 25... g4 {[%clk 0:01:22.6]} 26. Nd4 {[%clk
0:01:32.8]} 26... Qh5 {[%clk 0:01:22.4]} 27. h4 {[%clk 0:01:30.5]} 27... gxh3+
{[%clk 0:01:15.8]} 28. Kg1 {[%clk 0:01:11.2]} 28... h2+ {[%clk 0:01:12.8]} 29.
Kg2 {[%clk 0:01:10.9]} 29... Qxe2 {[%clk 0:00:39.9]} 30. Nxe2 {[%clk 0:01:10]}
30... Ra8 {[%clk 0:00:40.8]} 31. a4 {[%clk 0:01:02.9]} 31... Rb8 {[%clk
0:00:39.4]} 32. Nd4 {[%clk 0:00:58.2]} 32... Rb6 {[%clk 0:00:33.7]} 33. f3
{[%clk 0:00:53.1]} 33... Nd2 {[%clk 0:00:28.3]} 34. Kxh2 {[%clk 0:00:49.7]}
34... Kg7 {[%clk 0:00:13.6]} 35. Rc2 {[%clk 0:00:44.8]} 35... Nf1+ {[%clk
0:00:09.7]} 36. Kg1 {[%clk 0:00:43.8]} 36... Nxe3 {[%clk 0:00:10.6]} 37. Rc3
{[%clk 0:00:41.1]} 37... Nd1 {[%clk 0:00:08.5]} 38. Rd3 {[%clk 0:00:37.7]} 38...
Nb2 {[%clk 0:00:08.5]} 39. Rd2 {[%clk 0:00:36.5]} 39... Nc4 {[%clk 0:00:06.2]}
40. bxc4 {[%clk 0:00:36.1]} 40... dxc4 {[%clk 0:00:07.1]} 41. a5 {[%clk
0:00:35.9]} 41... Ra6 {[%clk 0:00:06.9]} 42. Ra2 {[%clk 0:00:35.8]} 42... Kf6
{[%clk 0:00:06.9]} 43. Kf2 {[%clk 0:00:32.8]} 43... Ke5 {[%clk 0:00:07]} 44. Ne2
{[%clk 0:00:32.8]} 44... Kd5 {[%clk 0:00:06.8]} 45. Ke3 {[%clk 0:00:30.2]} 45...
Kc5 {[%clk 0:00:06.3]} 46. Nc3 {[%clk 0:00:26.1]} 46... Kb4 {[%clk 0:00:06.6]}
47. Nd5+ {[%clk 0:00:25.5]} 47... Kb3 {[%clk 0:00:07]} 48. Ra1 {[%clk
0:00:25.9]} 48... c3 {[%clk 0:00:07.4]} 49. Nxc3 {[%clk 0:00:23.4]} 49... Kxc3
{[%clk 0:00:08.3]} 50. Kf4 {[%clk 0:00:24]} 50... Kb4 {[%clk 0:00:08]} 51. Kf5
{[%clk 0:00:23.1]} 51... Kb5 {[%clk 0:00:06]} 52. f4 {[%clk 0:00:23.3]} 52...
Kb4 {[%clk 0:00:06.1]} 53. g4 {[%clk 0:00:23.5]} 53... Kb5 {[%clk 0:00:05.9]}
54. Ra2 {[%clk 0:00:23.6]} 54... Kb4 {[%clk 0:00:05.3]} 55. Ke4 {[%clk
0:00:22.3]} 55... Kb5 {[%clk 0:00:05.3]} 56. f5 {[%clk 0:00:22.6]} 56... Kb4
{[%clk 0:00:05.3]} 57. Kf4 {[%clk 0:00:23.2]} 57... Kb5 {[%clk 0:00:05.5]} 58.
Kg3 {[%clk 0:00:23.3]} 58... Kb4 {[%clk 0:00:05.6]} 59. Kh4 {[%clk 0:00:23.7]}
59... Kb5 {[%clk 0:00:06]} 60. Kh5 {[%clk 0:00:24]} 60... Kb4 {[%clk 0:00:06.4]}
61. Re2 {[%clk 0:00:23.9]} 61... Kxa5 {[%clk 0:00:05.7]} 62. Ra2+ {[%clk
0:00:23.6]} 62... Kb5 {[%clk 0:00:06]} 63. Rxa6 {[%clk 0:00:24.3]} 63... Kxa6
{[%clk 0:00:06.7]} 64. Kxh6 {[%clk 0:00:25.2]} 64... Kb6 {[%clk 0:00:07.5]} 65.
Kg7 {[%clk 0:00:25.4]} 65... Kc6 {[%clk 0:00:08.4]} 66. Kxf7 {[%clk 0:00:25.8]}
1-0

[Event "*** Titled Tuesday Blitz"]
[Site "Chess.com"]
[Date "2020.11.03"]
[Round "4"]
[White "Forantes"]
[Black "manipun1"]
[Result "1/2-1/2"]
[WhiteElo "2407"]
[BlackElo "2236"]
[TimeControl "180+1"]
[EndTime "10:42:50 PST"]
[Termination "Game drawn by stalemate"]

1. Nf3 {[%clk 0:03:00.9]} 1... d5 {[%clk 0:02:48.9]} 2. g3 {[%clk 0:03:00.8]}
2... c6 {[%clk 0:02:49.8]} 3. Bg2 {[%clk 0:03:00.4]} 3... g6 {[%clk 0:02:50.6]}
4. O-O {[%clk 0:03:00.8]} 4... Bg7 {[%clk 0:02:51.5]} 5. d4 {[%clk 0:03:01.2]}
5... Nf6 {[%clk 0:02:51.8]} 6. c4 {[%clk 0:03:01.6]} 6... O-O {[%clk 0:02:51.7]}
7. Qb3 {[%clk 0:03:01.3]} 7... e6 {[%clk 0:02:51.2]} 8. Nc3 {[%clk 0:02:59.9]}
8... Nbd7 {[%clk 0:02:50.5]} 9. Re1 {[%clk 0:02:56.5]} 9... b6 {[%clk
0:02:49.8]} 10. Bf4 {[%clk 0:02:44.7]} 10... Bb7 {[%clk 0:02:48.8]} 11. Rad1
{[%clk 0:02:41.8]} 11... Re8 {[%clk 0:02:37.8]} 12. e4 {[%clk 0:02:24.7]} 12...
dxe4 {[%clk 0:02:29.1]} 13. Nxe4 {[%clk 0:02:25.6]} 13... Nxe4 {[%clk
0:02:29.3]} 14. Rxe4 {[%clk 0:02:25.6]} 14... c5 {[%clk 0:02:29.8]} 15. d5
{[%clk 0:02:09.9]} 15... exd5 {[%clk 0:02:23.3]} 16. Rxe8+ {[%clk 0:02:09.1]}
16... Qxe8 {[%clk 0:02:23.5]} 17. cxd5 {[%clk 0:02:10]} 17... Nf6 {[%clk
0:02:03.4]} 18. Re1 {[%clk 0:01:48]} 18... Qd8 {[%clk 0:01:54.5]} 19. d6 {[%clk
0:01:46.1]} 19... h6 {[%clk 0:01:49.4]} 20. Be5 {[%clk 0:01:43.3]} 20... Qd7
{[%clk 0:01:40.5]} 21. Qc3 {[%clk 0:01:10.4]} 21... Nd5 {[%clk 0:01:13.4]} 22.
Qd2 {[%clk 0:01:09.5]} 22... Re8 {[%clk 0:01:08.6]} 23. Bxg7 {[%clk 0:00:55.9]}
23... Kxg7 {[%clk 0:01:03.2]} 24. Rxe8 {[%clk 0:00:24.7]} 24... Qxe8 {[%clk
0:01:02.2]} 25. Ne1 {[%clk 0:00:13.1]} 25... Qe6 {[%clk 0:00:59.1]} 26. Nd3
{[%clk 0:00:11.7]} 26... Bc6 {[%clk 0:00:49.2]} 27. Nf4 {[%clk 0:00:07.3]} 27...
Nxf4 {[%clk 0:00:46.2]} 28. Bxc6 {[%clk 0:00:07.3]} 28... Ne2+ {[%clk
0:00:45.5]} 29. Kg2 {[%clk 0:00:06]} 29... Nd4 {[%clk 0:00:45.4]} 30. Ba8 {[%clk
0:00:02.3]} 30... Qxd6 {[%clk 0:00:44.6]} 31. Qe3 {[%clk 0:00:02.3]} 31... Qe6
{[%clk 0:00:42.4]} 32. Qd3 {[%clk 0:00:01.9]} 32... h5 {[%clk 0:00:40.2]} 33. b4
{[%clk 0:00:02.1]} 33... Qxa2 {[%clk 0:00:38.5]} 34. bxc5 {[%clk 0:00:02.4]}
34... bxc5 {[%clk 0:00:38.8]} 35. Qe4 {[%clk 0:00:02.7]} 35... Qe6 {[%clk
0:00:37.4]} 36. Qb7 {[%clk 0:00:03.2]} 36... a5 {[%clk 0:00:35.8]} 37. Qc7
{[%clk 0:00:03.2]} 37... Qf5 {[%clk 0:00:29.7]} 38. Bb7 {[%clk 0:00:02.5]} 38...
a4 {[%clk 0:00:28.3]} 39. Qd8 {[%clk 0:00:02.6]} 39... Ne6 {[%clk 0:00:27.5]}
40. Qa8 {[%clk 0:00:02.7]} 40... c4 {[%clk 0:00:19.6]} 41. Qxa4 {[%clk
0:00:02.2]} 41... Qc5 {[%clk 0:00:19.9]} 42. Qc6 {[%clk 0:00:02.3]} 42... Qxc6+
{[%clk 0:00:19.2]} 43. Bxc6 {[%clk 0:00:03.2]} 43... c3 {[%clk 0:00:19.7]} 44.
Be4 {[%clk 0:00:03.7]} 44... Nd4 {[%clk 0:00:20.1]} 45. Kf1 {[%clk 0:00:04.2]}
45... f5 {[%clk 0:00:20.6]} 46. Ke1 {[%clk 0:00:04.8]} 46... Kf6 {[%clk
0:00:21.4]} 47. Bd3 {[%clk 0:00:04.4]} 47... Ke5 {[%clk 0:00:21.6]} 48. f4+
{[%clk 0:00:04.8]} 48... Kd5 {[%clk 0:00:21.2]} 49. Kd1 {[%clk 0:00:05.1]} 49...
Kc5 {[%clk 0:00:21.6]} 50. Kc1 {[%clk 0:00:05.3]} 50... Nf3 {[%clk 0:00:21.9]}
51. Kc2 {[%clk 0:00:04.4]} 51... Kd4 {[%clk 0:00:22.2]} 52. h4 {[%clk
0:00:04.4]} 52... Ne1+ {[%clk 0:00:22.3]} 53. Kd1 {[%clk 0:00:04.9]} 53... Nxd3
{[%clk 0:00:23.2]} 54. Kc2 {[%clk 0:00:05.1]} 54... Nc5 {[%clk 0:00:23.8]} 55.
g4 {[%clk 0:00:05.4]} 55... Ne4 {[%clk 0:00:24.7]} 56. Kd1 {[%clk 0:00:05.5]}
56... fxg4 {[%clk 0:00:24.5]} 57. f5 {[%clk 0:00:05.7]} 57... gxf5 {[%clk
0:00:23.7]} 58. Ke2 {[%clk 0:00:06.6]} 58... f4 {[%clk 0:00:23.1]} 59. Kf1
{[%clk 0:00:07]} 59... c2 {[%clk 0:00:23.2]} 60. Ke2 {[%clk 0:00:06.2]} 60...
c1=Q {[%clk 0:00:24.1]} 1/2-1/2